fUST/lending_fUST_20260206
["ID","MTS","AMOUNT","RATE_DAILY","PERIOD"]
[404621090,1770337847201,-885.3874,0.00025,30]
[404621091,1770337847211,-31660.03626725,0.00025,30]
[404621092,1770337847225,-433.93461005,0.00025,30]
[404621108,1770337900584,-500.0,0.00015339,2]
[404621109,1770337900616,-500.0,0.00015339,2]
[404621110,1770337900644,-500.0,0.00015339,2]
[404621111,1770337900672,-307.52973276,0.00015339,2]
[404621112,1770337929990,-145.20841668,0.00015338,2]
[404621115,1770338044169,900.46776474,0.0001501,2]
[404621117,1770338059567,594.7656,0.0001501,2]
[404621123,1770338145938,242.0,0.00025488,120]
[404621124,1770338147368,242.0,0.00026762,120]
[404621125,1770338148933,242.0,0.000281,120]
[404621126,1770338150595,242.0,0.00029506,120]
[404621128,1770338182248,296.31828117,0.0001501,2]
[404621129,1770338197314,1605.86446692,0.0001501,2]
[404621131,1770338269778,-638.95152424,0.00015236,2]
[404621132,1770338269810,-206.04726354,0.00015287,2]
[404621133,1770338269836,-562.0,0.00015336,2]
[404621134,1770338269861,-300.0,0.00015336,2]
[404621135,1770338269886,-500.0,0.00015336,2]
[404621136,1770338269911,-200.35166357,0.00015336,2]
[404621137,1770338270063,-500.0,0.00015336,2]
[404621138,1770338270088,-500.0,0.00015336,2]
[404621139,1770338270111,-500.0,0.00015336,2]
[404621140,1770338270133,-500.0,0.00015336,2]
[404621141,1770338270158,-500.0,0.00015336,2]
[404621142,1770338270182,-500.0,0.00015336,2]
[404621143,1770338270206,-500.0,0.00015336,2]
[404621144,1770338270230,-500.0,0.00015336,2]
[404621145,1770338270256,-500.0,0.00015336,2]
[404621146,1770338270280,-255.55110966,0.00015336,2]
[404621147,1770338270312,-500.0,0.00015336,2]
[404621148,1770338270337,-500.0,0.00015336,2]
[404621149,1770338270361,-522.95893998,0.00015336,2]
[404621150,1770338270384,-500.0,0.00015336,2]
[404621151,1770338270410,-500.0,0.00015336,2]
[404621152,1770338270435,-500.0,0.00015336,2]
[404621153,1770338270460,-500.0,0.00015336,2]
[404621154,1770338270482,-500.0,0.00015336,2]
[404621155,1770338270507,-500.0,0.00015336,2]
[404621156,1770338270530,-500.0,0.00015336,2]
[404621157,1770338270561,-500.0,0.00015336,2]
[404621158,1770338270585,-500.0,0.00015336,2]
[404621159,1770338270609,-500.0,0.00015336,2]
[404621160,1770338270633,-264.40948504,0.00015336,2]
[404621161,1770338270658,-500.0,0.00015336,2]
[404621162,1770338270683,-500.0,0.00015336,2]
[404621163,1770338270710,-500.0,0.00015336,2]
[404621164,1770338270734,-500.0,0.00015336,2]
[404621165,1770338270759,-500.0,0.00015336,2]
[404621166,1770338270783,-500.0,0.00015336,2]
[404621167,1770338270812,-500.0,0.00015336,2]
[404621168,1770338270839,-500.0,0.00015336,2]
[404621169,1770338270864,-500.0,0.00015336,2]
[404621170,1770338270889,-500.0,0.00015336,2]
[404621171,1770338270916,-500.0,0.00015336,2]
[404621172,1770338270945,-500.0,0.00015336,2]
[404621173,1770338270984,-500.0,0.00015336,2]
[404621174,1770338271011,-500.0,0.00015336,2]
[404621175,1770338271042,-500.0,0.00015336,2]
[404621176,1770338271068,-500.0,0.00015336,2]
[404621177,1770338271097,-590.18970958,0.00015336,2]
[404621178,1770338271124,-500.0,0.00015336,2]
[404621179,1770338271150,-500.0,0.00015336,2]
[404621180,1770338271175,-500.0,0.00015336,2]
[404621181,1770338271200,-500.0,0.00015336,2]
[404621182,1770338271227,-500.0,0.00015336,2]
[404621183,1770338271254,-453.74113609,0.00015336,2]
[404621184,1770338271280,-500.0,0.00015336,2]
[404621185,1770338271312,-305.0,0.00015336,2]
[404621186,1770338271339,-500.0,0.00015336,2]
[404621187,1770338271367,-500.0,0.00015336,2]
[404621188,1770338271395,-500.0,0.00015336,2]
[404621189,1770338271422,-500.0,0.00015336,2]
[404621190,1770338271450,-500.0,0.00015336,2]
[404621191,1770338271476,-500.0,0.00015336,2]
[404621192,1770338271505,-500.0,0.00015336,2]
[404621193,1770338271532,-500.0,0.00015336,2]
[404621194,1770338271567,-500.0,0.00015336,2]
[404621195,1770338271592,-500.0,0.00015336,2]
[404621196,1770338271620,-500.0,0.00015336,2]
[404621197,1770338271647,-500.0,0.00015336,2]
[404621198,1770338271674,-500.0,0.00015336,2]
[404621199,1770338271702,-500.0,0.00015336,2]
[404621200,1770338271728,-500.0,0.00015336,2]
[404621201,1770338271754,-500.0,0.00015336,2]
[404621202,1770338271782,-500.0,0.00015336,2]
[404621203,1770338271816,-500.0,0.00015336,2]
[404621204,1770338271842,-500.0,0.00015336,2]
[404621205,1770338271868,-500.0,0.00015336,2]
[404621206,1770338271895,-500.0,0.00015336,2]
[404621207,1770338271922,-500.0,0.00015336,2]
[404621208,1770338271947,-500.0,0.00015336,2]
[404621209,1770338271972,-500.0,0.00015336,2]
[404621210,1770338271997,-500.0,0.00015336,2]
[404621211,1770338272022,-500.0,0.00015336,2]
[404621212,1770338272052,-500.0,0.00015336,2]
[404621213,1770338272076,-500.0,0.00015336,2]
[404621214,1770338272102,-500.0,0.00015336,2]
[404621215,1770338272127,-500.0,0.00015336,2]
[404621216,1770338272153,-500.0,0.00015336,2]
[404621217,1770338272179,-500.0,0.00015336,2]
[404621218,1770338272204,-500.0,0.00015336,2]
[404621219,1770338272230,-500.0,0.00015336,2]
[404621220,1770338272255,-500.0,0.00015336,2]
[404621221,1770338272280,-500.0,0.00015336,2]
[404621222,1770338272312,-500.0,0.00015336,2]
[404621223,1770338272339,-153.81008821,0.00015336,2]
[404621224,1770338272364,-500.0,0.00015336,2]
[404621225,1770338272391,-500.0,0.00015336,2]
[404621226,1770338272418,-500.0,0.00015336,2]
[404621227,1770338272445,-500.0,0.00015336,2]
[404621228,1770338272472,-500.0,0.00015336,2]
[404621229,1770338272499,-500.0,0.00015336,2]
[404621230,1770338272527,-500.0,0.00015336,2]
[404621231,1770338272559,-500.0,0.00015336,2]
[404621232,1770338272587,-500.0,0.00015336,2]
[404621233,1770338272737,-500.0,0.00015336,2]
[404621234,1770338272765,-500.0,0.00015336,2]
[404621235,1770338272796,-500.0,0.00015336,2]
[404621236,1770338272821,-500.0,0.00015336,2]
[404621237,1770338272845,-500.0,0.00015336,2]
[404621238,1770338272868,-500.0,0.00015336,2]
[404621239,1770338272892,-500.0,0.00015336,2]
[404621240,1770338272918,-500.0,0.00015336,2]
[404621241,1770338272942,-500.0,0.00015336,2]
[404621242,1770338272966,-500.0,0.00015336,2]
[404621243,1770338272989,-500.0,0.00015336,2]
[404621244,1770338273013,-500.0,0.00015336,2]
[404621245,1770338273043,-500.0,0.00015336,2]
[404621246,1770338273067,-500.0,0.00015336,2]
[404621247,1770338273092,-500.0,0.00015336,2]
[404621248,1770338273116,-500.0,0.00015336,2]
[404621249,1770338273141,-500.0,0.00015336,2]
[404621250,1770338273165,-500.0,0.00015336,2]
[404621251,1770338273189,-500.0,0.00015336,2]
[404621252,1770338273213,-500.0,0.00015336,2]
[404621253,1770338273239,-500.0,0.00015336,2]
[404621254,1770338273264,-500.0,0.00015336,2]
[404621255,1770338273292,-500.0,0.00015336,2]
[404621256,1770338273318,-500.0,0.00015336,2]
[404621257,1770338273344,-500.0,0.00015336,2]
[404621258,1770338273369,-500.0,0.00015336,2]
[404621259,1770338273393,-500.0,0.00015336,2]
[404621260,1770338273418,-168.94266906,0.00015336,2]
[404621261,1770338273443,-500.0,0.00015336,2]
[404621262,1770338273468,-500.0,0.00015336,2]
[404621263,1770338273493,-500.0,0.00015336,2]
[404621264,1770338273521,-500.0,0.00015336,2]
[404621265,1770338273547,-500.0,0.00015336,2]
[404621266,1770338273576,-500.0,0.00015336,2]
[404621267,1770338273604,-500.0,0.00015336,2]
[404621268,1770338273630,-500.0,0.00015336,2]
[404621269,1770338273657,-500.0,0.00015336,2]
[404621270,1770338273681,-500.0,0.00015336,2]
[404621271,1770338273710,-500.0,0.00015336,2]
[404621272,1770338273735,-500.0,0.00015336,2]
[404621273,1770338273764,-311.7073862,0.00015336,2]
[404621274,1770338273798,-500.0,0.00015336,2]
[404621275,1770338273825,-500.0,0.00015336,2]
[404621276,1770338273853,-500.0,0.00015336,2]
[404621277,1770338273897,-500.0,0.00015336,2]
[404621278,1770338273931,-500.0,0.00015336,2]
[404621279,1770338273961,-500.0,0.00015336,2]
[404621280,1770338273990,-500.0,0.00015336,2]
[404621281,1770338274018,-500.0,0.00015336,2]
[404621282,1770338274052,-500.0,0.00015336,2]
[404621283,1770338274080,-500.0,0.00015336,2]
[404621284,1770338274108,-500.0,0.00015336,2]
[404621285,1770338274135,-500.0,0.00015336,2]
[404621286,1770338274165,-500.0,0.00015336,2]
[404621287,1770338274195,-500.0,0.00015336,2]
[404621288,1770338274225,-500.0,0.00015336,2]
[404621289,1770338274252,-500.0,0.00015336,2]
[404621290,1770338274279,-500.0,0.00015336,2]
[404621291,1770338274311,-458.94643283,0.00015336,2]
[404621292,1770338274339,-500.0,0.00015336,2]
[404621293,1770338274366,-500.0,0.00015336,2]
[404621294,1770338274395,-500.0,0.00015336,2]
[404621295,1770338274421,-500.0,0.00015336,2]
[404621296,1770338274446,-500.0,0.00015336,2]
[404621297,1770338274472,-500.0,0.00015336,2]
[404621298,1770338274498,-500.0,0.00015336,2]
[404621299,1770338274525,-500.0,0.00015336,2]
[404621300,1770338274559,-500.0,0.00015336,2]
[404621301,1770338274588,-500.0,0.00015336,2]
[404621302,1770338274616,-450.0,0.00015336,2]
[404621303,1770338274644,-500.0,0.00015336,2]
[404621304,1770338274672,-500.0,0.00015336,2]
[404621305,1770338274700,-500.0,0.00015336,2]
[404621306,1770338274727,-500.0,0.00015336,2]
[404621307,1770338274753,-500.0,0.00015336,2]
[404621308,1770338274780,-500.0,0.00015336,2]
[404621309,1770338274812,-500.0,0.00015336,2]
[404621310,1770338274839,-500.0,0.00015336,2]
[404621311,1770338274865,-500.0,0.00015336,2]
[404621312,1770338274891,-500.0,0.00015336,2]
[404621313,1770338274918,-500.0,0.00015336,2]
[404621314,1770338274944,-500.0,0.00015336,2]
[404621315,1770338274970,-500.0,0.00015336,2]
[404621316,1770338274996,-500.0,0.00015336,2]
[404621317,1770338275024,-500.0,0.00015336,2]
[404621318,1770338275057,-500.0,0.00015336,2]
[404621319,1770338275084,-500.0,0.00015336,2]
[404621320,1770338275111,-500.0,0.00015336,2]
[404621321,1770338275136,-500.0,0.00015336,2]
[404621322,1770338275160,-500.0,0.00015336,2]
[404621323,1770338275185,-500.0,0.00015336,2]
[404621324,1770338275209,-500.0,0.00015336,2]
[404621325,1770338275233,-500.0,0.00015336,2]
[404621326,1770338275257,-500.0,0.00015336,2]
[404621327,1770338275282,-500.0,0.00015336,2]
[404621328,1770338275311,-500.0,0.00015336,2]
[404621329,1770338275335,-500.0,0.00015336,2]
[404621330,1770338275361,-500.0,0.00015336,2]
[404621331,1770338275386,-466.8942669,0.00015336,2]
[404621332,1770338275411,-500.0,0.00015336,2]
[404621333,1770338275435,-500.0,0.00015336,2]
[404621334,1770338275461,-500.0,0.00015336,2]
[404621335,1770338275487,-190.4983251,0.00015336,2]
[404621336,1770338280727,490.15,9.99e-05,2]
[404621337,1770338281046,490.15,9.99e-05,2]
[404621339,1770338299513,-309.5016749,0.00015336,2]
[404621340,1770338299541,-500.0,0.00015336,2]
[404621341,1770338299574,-500.0,0.00015336,2]
[404621342,1770338299607,-500.0,0.00015336,2]
[404621343,1770338299633,-271.37519072,0.0001534,2]
[404621344,1770338299659,-300.0,0.00015644,2]
[404621345,1770338299685,-300.0,0.00015645,2]
[404621346,1770338299714,-300.0,0.00015645,2]
[404621347,1770338299741,-300.0,0.00015645,2]
[404621348,1770338299768,-300.0,0.00015645,2]
[404621349,1770338299795,-300.0,0.00015645,2]
[404621350,1770338299827,-300.0,0.00015645,2]
[404621351,1770338299854,-300.0,0.00015645,2]
[404621352,1770338299881,-300.0,0.00015645,2]
[404621353,1770338299908,-300.0,0.00015645,2]
[404621354,1770338299935,-300.0,0.00015645,2]
[404621355,1770338299962,-300.0,0.00015645,2]
[404621356,1770338299990,-300.0,0.00015645,2]
[404621357,1770338300016,-300.0,0.00015645,2]
[404621358,1770338300042,-300.0,0.00015645,2]
[404621359,1770338300080,-300.0,0.00015645,2]
[404621360,1770338300110,-600.0,0.00015645,2]
[404621361,1770338300134,-599.11934858,0.00016438,2]
[404621362,1770338300159,-500.0,0.00016438,2]
[404621363,1770338300187,-420.0,0.0001711,2]
[404621364,1770338300215,-720.0,0.00017209,2]
[404621365,1770338300241,-243.13577098,0.00017287,2]
[404621366,1770338300266,-587.0,0.00018714,2]
[404621367,1770338300289,-303.10001603,0.000189,2]
[404621368,1770338300320,-864.0,0.0001893,2]
[404621369,1770338300345,-303.10001603,0.00019089,2]
[404621370,1770338300371,-303.10001603,0.00019278,2]
[404621371,1770338300398,-280.22427842,0.00019287,2]
[404621372,1770338300423,-303.10001603,0.00019467,2]
[404621373,1770338300449,-303.10001603,0.00019656,2]
[404621374,1770338300475,-454.65002405,0.00019845,4]
[404621375,1770338300502,-454.65002405,0.00020034,4]
[404621376,1770338300527,-454.65002405,0.00020223,4]
[404621377,1770338300551,-454.65002405,0.00020412,4]
[404621378,1770338300583,-823.0,0.00020468,2]
[404621379,1770338300607,-214.07563824,0.00020501,2]
[404621380,1770338300633,-500.0,0.00020501,2]
[404621381,1770338300658,-500.0,0.00020501,2]
[404621382,1770338300682,-500.0,0.00020501,2]
[404621383,1770338300709,-243.60016783,0.00020501,2]
[404621384,1770338300734,-454.65002405,0.00020601,4]
[404621385,1770338300760,-1000.0,0.00020823,2]
[404621386,1770338324741,250.0,0.00020979,2]
[404621387,1770338328159,604.2107354,0.0001771,2]
[404621388,1770338328370,679.7370773,0.00020835,2]
[404621390,1770338351203,200.0,0.00015429,2]
[404621393,1770338424554,297.0,0.00020959,120]
[404621399,1770338456049,303.10001603,0.000189,2]
[404621400,1770338456082,152.06974462,0.00019089,2]
[404621404,1770338460833,222.0,0.00020977,120]
[404621405,1770338463322,222.0,0.00022026,120]
[404621406,1770338465439,222.0,0.00023127,120]
[404621407,1770338467530,222.0,0.00024284,120]
[404621408,1770338469382,222.0,0.00025498,120]
[404621409,1770338471158,222.0,0.00026773,120]
[404621410,1770338473101,222.0,0.00028112,120]
[404621412,1770338474950,222.0,0.00029517,120]
[404621414,1770338505239,32711.62541215,0.00020987,2]
[404621415,1770338512365,10000.0,0.00021,2]
[404621416,1770338522371,10000.0,0.00021,2]
[404621417,1770338526146,1894.33,0.00021,2]
[404621418,1770338530042,10000.0,0.00021,2]
[404621420,1770338539568,9488.91,0.00021,2]
[404621422,1770338613549,246.4708029,0.0001771,2]
[404621423,1770338644126,177.17618154,0.00020861,5]
[404621436,1770338728765,1787.72,0.00021,2]
[404621437,1770338733571,222.0,0.00021465,120]
[404621438,1770338736228,222.0,0.00022539,120]
[404621440,1770338764073,177.17618153,0.00020861,5]
[404621442,1770338811749,2063.69157846,0.0001771,2]
[404621468,1770338848970,-300.0,0.00017709,2]
[404621469,1770338848994,-27599.00493344,0.0001771,2]
[404621470,1770338849019,-300.0,0.00018063,2]
[404621471,1770338849045,-300.0,0.00018063,2]
[404621472,1770338849068,-300.0,0.00018063,2]
[404621473,1770338849091,-300.0,0.00018063,2]
[404621474,1770338849113,-300.0,0.00018063,2]
[404621475,1770338849137,-300.0,0.00018063,2]
[404621476,1770338849159,-300.0,0.00018063,2]
[404621477,1770338849183,-300.0,0.00018063,2]
[404621478,1770338849208,-300.0,0.00018063,2]
[404621479,1770338849230,-300.0,0.00018063,2]
[404621480,1770338849253,-300.0,0.00018063,2]
[404621481,1770338849280,-300.0,0.00018063,2]
[404621482,1770338849303,-300.0,0.00018063,2]
[404621483,1770338849326,-300.0,0.00018063,2]
[404621484,1770338849350,-300.0,0.00018063,2]
[404621485,1770338849375,-600.0,0.00018423,2]
[404621486,1770338849398,-420.0,0.00019328,2]
[404621487,1770338849422,-720.0,0.00020266,2]
[404621488,1770338849445,-587.0,0.00021095,2]
[404621489,1770338849469,-15273.99506656,0.00021099,2]
[404621492,1770338855669,-18096.53850934,0.00021099,2]
[404621493,1770338855693,-202.3231962,0.00021125,2]
[404621494,1770338855715,-277.2796533,0.00021163,2]
[404621495,1770338855739,-317.31,0.00021187,2]
[404621496,1770338855763,-281.44,0.00021187,2]
[404621497,1770338855791,-281.44,0.00021187,2]
[404621498,1770338855814,-281.44,0.00021187,2]
[404621499,1770338855837,-281.44,0.00021187,2]
[404621500,1770338855862,-281.44,0.00021187,2]
[404621501,1770338855888,-281.44,0.00021187,2]
[404621502,1770338855912,-281.43,0.00021187,2]
[404621503,1770338855935,-615.4393448,0.00021187,2]
[404621504,1770338855960,-269.81,0.000212,2]
[404621505,1770338855983,-10000.0,0.00021252,2]
[404621506,1770338856006,-7252.7394392,0.00021479,2]
[404621507,1770338856032,-2000.0,0.00021917,2]
[404621508,1770338856055,-250.0,0.00021918,45]
[404621527,1770338975160,-4612.7377731,0.00022397,2]
[404621528,1770338975183,-238.74137151,0.00023125,2]
[404621529,1770338975214,-151.0,0.000232,9]
[404621530,1770338975245,-684.737,0.000232,3]
[404621531,1770338975269,-190.34921568,0.000232,3]
[404621532,1770338975293,-2870.92449687,0.00023498,2]
[404621588,1770339031995,-250.0,0.00021918,45]
[404621589,1770339032004,-588.73973918,0.00022486,2]
[404621635,1770339039636,-309.61068366,0.00022486,2]
[404621636,1770339039653,-3465.70363101,0.00023498,2]
[404621637,1770339039668,-500.0,0.00023597,2]
[404621638,1770339039685,-500.0,0.00023597,2]
[404621639,1770339039699,-307.15660945,0.00023597,2]
[404621640,1770339039713,-500.0,0.00023597,2]
[404621641,1770339039728,-335.88432666,0.00023597,2]
[404621642,1770339039744,-500.0,0.00023597,2]
[404621643,1770339039755,-500.0,0.00023597,2]
[404621644,1770339039769,-500.0,0.00023597,2]
[404621645,1770339039782,-500.0,0.00023597,2]
[404621646,1770339039799,-500.0,0.00023597,2]
[404621647,1770339039813,-600.21078842,0.00023597,2]
[404621648,1770339039827,-500.0,0.00023597,2]
[404621649,1770339039842,-500.0,0.00023597,2]
[404621650,1770339039857,-500.0,0.00023597,2]
[404621651,1770339039872,-500.0,0.00023597,2]
[404621652,1770339039884,-500.0,0.00023597,2]
[404621653,1770339039895,-477.18942669,0.00023597,2]
[404621654,1770339039909,-500.0,0.00023597,2]
[404621655,1770339039928,-31.94888625,0.00023597,2]
[404621656,1770339039961,-328.43212257,0.00023597,2]
[404621657,1770339039975,-614.63287743,0.00023597,2]
[404621723,1770339040854,-26.63587947,0.00023597,2]
[404621725,1770339040867,-500.0,0.00023597,2]
[404621727,1770339040881,-500.0,0.00023597,2]
[404621729,1770339040894,-151.0,0.000237,7]
[404621731,1770339040908,-118.55606908,0.00023855,2]
[404622015,1770339046474,-2191.90903425,0.00023855,2]
[404622017,1770339046483,-220.61491643,0.00023951,2]
[404622019,1770339046492,-300.0,0.00024059,10]
[404622021,1770339046502,-300.0,0.00024059,10]
[404622023,1770339046512,-300.0,0.00024059,10]
[404622025,1770339046521,-300.0,0.00024059,10]
[404622027,1770339046530,-300.0,0.00024059,10]
[404622029,1770339046540,-300.0,0.00024059,10]
[404622031,1770339046549,-300.0,0.00024059,10]
[404622033,1770339046559,-300.0,0.00024059,10]
[404622034,1770339046568,-300.0,0.00024059,10]
[404622035,1770339046578,-300.0,0.00024059,10]
[404622036,1770339046588,-300.0,0.00024059,10]
[404622037,1770339046598,-300.0,0.00024059,10]
[404622038,1770339046607,-300.0,0.00024059,10]
[404622039,1770339046616,-300.0,0.00024059,10]
[404622040,1770339046626,-300.0,0.00024059,10]
[404622041,1770339046636,-600.0,0.00024069,10]
[404622042,1770339046645,-408.32089484,0.000241,2]
[404622043,1770339046655,-2000.0,0.00024116,2]
[404622044,1770339046664,-2000.0,0.00024116,2]
[404622045,1770339046674,-2000.0,0.00024116,2]
[404622046,1770339046687,-2000.0,0.00024116,2]
[404622047,1770339046696,-2000.0,0.00024116,2]
[404622048,1770339046705,-2000.0,0.00024116,2]
[404622049,1770339046715,-2000.0,0.00024116,2]
[404622050,1770339046724,-2000.0,0.00024116,2]
[404622051,1770339046734,-2000.0,0.00024116,2]
[404622052,1770339046744,-2000.0,0.00024116,2]
[404622053,1770339046754,-2000.0,0.00024116,2]
[404622054,1770339046764,-2000.0,0.00024116,2]
[404622055,1770339046773,-2000.0,0.00024116,2]
[404622056,1770339046782,-2000.0,0.00024116,2]
[404622057,1770339046791,-2000.0,0.00024116,2]
[404622058,1770339046801,-37078.3706399,0.0002413,2]
[404622059,1770339046811,-151.0,0.000242,9]
[404622060,1770339046820,-308.0885037,0.00024252,2]
[404622061,1770339046838,-479.77,0.000243,7]
[404622062,1770339046847,-2000.0,0.00024657,12]
[404622063,1770339046856,-150.0,0.00024658,2]
[404622064,1770339046866,-200.0,0.00024658,2]
[404622065,1770339046875,-151.0,0.000247,9]
[404622066,1770339046885,-15388.92,0.0002485,10]
[404622067,1770339046894,-209.40437684,0.0002486,2]
[404622068,1770339046904,-250.0,0.0002486,2]
[404622069,1770339046914,-250.0,0.0002486,2]
[404622070,1770339046924,-250.0,0.0002486,2]
[404622071,1770339046938,-250.0,0.0002486,2]
[404622072,1770339046947,-217.15233878,0.0002486,2]
[404622073,1770339046958,-250.0,0.0002486,2]
[404622074,1770339046967,-250.0,0.0002486,2]
[404622075,1770339046976,-225.18697532,0.0002486,2]
[404622076,1770339046986,-250.0,0.0002486,2]
[404622077,1770339046995,-250.0,0.0002486,2]
[404622078,1770339047006,-233.51889341,0.0002486,2]
[404622079,1770339047015,-1000.0,0.0002486,2]
[404622080,1770339047024,-250.0,0.0002486,2]
[404622081,1770339047033,-250.0,0.0002486,2]
[404622082,1770339047043,-242.15909246,0.0002486,2]
[404622083,1770339047052,-1000.0,0.0002486,2]
[404622084,1770339047061,-250.0,0.0002486,2]
[404622085,1770339047071,-250.0,0.0002486,2]
[404622086,1770339047080,-251.11897888,0.0002486,2]
[404622087,1770339047089,-1000.0,0.0002486,2]
[404622088,1770339047098,-250.0,0.0002486,2]
[404622089,1770339047107,-250.0,0.0002486,2]
[404622090,1770339047117,-500.0,0.0002486,2]
[404622091,1770339047126,-260.4103811,0.0002486,2]
[404622092,1770339047135,-1000.0,0.0002486,2]
[404622093,1770339047145,-250.0,0.0002486,2]
[404622094,1770339047154,-250.0,0.0002486,2]
[404622095,1770339047163,-250.0,0.0002486,2]
[404622096,1770339047172,-500.0,0.0002486,2]
[404622097,1770339047183,-270.0455652,0.0002486,2]
[404622098,1770339047193,-250.0,0.0002486,2]
[404622099,1770339047202,-250.0,0.0002486,2]
[404622100,1770339047212,-1000.0,0.0002486,2]
[404622101,1770339047221,-250.0,0.0002486,2]
[404622102,1770339047230,-500.0,0.0002486,2]
[404622103,1770339047239,-280.03725112,0.0002486,2]
[404622104,1770339047248,-250.0,0.0002486,2]
[404622105,1770339047257,-250.0,0.0002486,2]
[404622106,1770339047266,-250.0,0.0002486,2]
[404622107,1770339047276,-500.0,0.0002486,2]
[404622108,1770339047285,-290.39862941,0.0002486,2]
[404622109,1770339047294,-250.0,0.0002486,2]
[404622110,1770339047304,-250.0,0.0002486,2]
[404622111,1770339047315,-250.0,0.0002486,2]
[404622112,1770339047324,-500.0,0.0002486,2]
[404622113,1770339047334,-301.1433787,0.0002486,2]
[404622114,1770339047344,-250.0,0.0002486,2]
[404622115,1770339047354,-250.0,0.0002486,2]
[404622116,1770339047363,-250.0,0.0002486,2]
[404622117,1770339047372,-250.0,0.0002486,2]
[404622118,1770339047382,-250.0,0.0002486,2]
[404622119,1770339047391,-1000.0,0.0002486,2]
[404622120,1770339047401,-250.0,0.0002486,2]
[404622121,1770339047411,-250.0,0.0002486,2]
[404622122,1770339047421,-1000.0,0.0002486,2]
[404622123,1770339047433,-1000.0,0.0002486,2]
[404622124,1770339047442,-500.0,0.0002486,2]
[404622125,1770339047451,-1000.0,0.0002486,2]
[404622126,1770339047460,-1000.0,0.0002486,2]
[404622127,1770339047470,-500.0,0.0002486,2]
[404622128,1770339047480,-1000.0,0.0002486,2]
[404622129,1770339047489,-500.0,0.0002486,2]
[404622130,1770339047499,-221.90600088,0.0002486,2]
[404622131,1770339047509,-250.0,0.0002486,2]
[404622132,1770339047519,-250.0,0.0002486,2]
[404622133,1770339047529,-250.0,0.0002486,2]
[404622134,1770339047539,-1041.66666667,0.00024874,10]
[404622135,1770339047549,-2608.51399216,0.00024884,2]
[404622136,1770339047558,-4071.72730964,0.00024884,2]
[404622137,1770339047567,-382.81350898,0.00024884,2]
[404622138,1770339047577,-455.1246247,0.00024884,2]
[404622139,1770339047587,-808.30133347,0.00024884,2]
[404622140,1770339047596,-859.02316948,0.00024884,2]
[404622142,1770339047718,-160.0,0.00024888,3]
[404622143,1770339047727,-15705.3152687,0.00024938,2]
[404622144,1770339047736,-800.0,0.00024948,2]
[404622145,1770339047746,-151.0,0.0002499,7]
[404622146,1770339047755,-151.0,0.0002499,7]
[404622147,1770339047765,-31410.6305373,0.0002499,2]
[404622148,1770339047775,-44877.95779034,0.00025,30]
[404622149,1770339047784,-1041.66666667,0.00025,30]
[404622150,1770339047794,-1962.91011654,0.00025,2]
[404622151,1770339047804,-1962.91011651,0.00025,2]